{"text_format":"1","workbook":"xlsx","n_sheets":5,"sheets":["Instructions","Ordering Tool","Order Reference Chart","Sheet2","Sheet1"],"not_rendered":{"charts":0,"images":0,"macros":1,"external_links":0,"defined_names":0,"comments":0,"pivot_tables":0},"unopened":[],"bounds":{"document_bytes":16777216,"sheet_cells":100000,"rows_first":2000,"rows_last":500,"rows_between":2000,"halvings":0,"cell_chars":16384,"cell_head_chars":4096},"cells_cut":0,"cells_raw":0,"read":"whole","date_system":"1900"}

{"sheet":"Instructions","index":0,"n_rows":0,"n_cols":0,"rows_kept":0,"cut":false,"hidden":false,"merged":[]}

{"sheet":"Ordering Tool","index":1,"n_rows":70,"n_cols":12,"rows_kept":70,"cut":false,"hidden":false,"merged":[]}
[null,"CSFP State and Local Agency Order Planning Tool"]
[null,"Agency:",null,"Caseload:"]
["Each food package must contain only one option from each category below. Please see the Instructions tab for more detailed instructions. ",null,null,null,null,null,null,null,null,"HIDE"]
["Food Package Category","Food Package Option","Amount Per Food Package","Product Pack Size","Units Per Client","Select Ordering Option","Total Units Per Month",null,"Cases Needed Per Month","Cases/Truck","Estimated Trucks Needed Per Month","Estimated Trucks Needed Per Quarter"]
[null,null,"1 Bottle of Juice (64 oz)",8,1,null,{"$f":"IFERROR(F5*$E$2,\"-\")","v":0},null,{"$f":"IFERROR(ROUNDUP(G5/D5,0),\"-\")","v":0},1025,{"$f":"IFERROR(I5/J5,\"-\")","v":0},{"$f":"IFERROR(K5*3,\"-\")","v":0}]
["Fruits and Juice:",null,"3 Cans of Fruit (15.5 oz)",24,3,null,{"$f":"IFERROR(F6*$E$2,\"-\")","v":0},null,0,1620,{"$f":"IFERROR(I6/J6,\"-\")","v":0},{"$f":"IFERROR(K6*3,\"-\")","v":0}]
["Press one of the 4 options only.",null,"2 Bottles of Juice (64 oz)",8,2,null,0,null,0,1025,0,0]
["Option 1: 1 juice and 3 cans fruit;",null,"2 Cans of Fruit (15.5 oz)",24,2,null,0,null,0,1620,0,0]
["Option 2: 2 juices and 2 cans fruit;",null,"1 Package of Raisins (15 oz)",24,1,null,0,null,0,1728,0,0]
["Option 3: 1 package raisins, 1 juice, ",null,"1 Bottle of Juice (64 oz)",8,1,null,0,null,0,1025,0,0]
["and 2 cans fruit; or",null,"2 Cans of Fruit (15.5 oz)",24,2,null,0,null,0,1620,0,0]
["Option 4: 1 package raisins, 2",null,"1 Package of Raisins (15 oz)",24,1,null,0,null,0,1728,0,0]
["juices, and 1 can fruit. ",null,"2 Bottles of Juice (64 oz)",8,2,null,0,null,0,1025,0,0]
[null,null,"1 Can of Fruit (15.5 oz)",24,1,null,0,null,0,1620,0,0]
[null,null,null,null,null,{"$f":"SUM(F5:F14)","v":0},"Out Of 4 Units Selected"]
["Vegetables:"]
["Press one of the two options only. ",null,"8 Cans of Vegetables or Soup (10.5 to 15.5 oz)",24,8,null,{"$f":"IFERROR(F17*$E$2,\"-\")","v":0},null,{"$f":"IFERROR(ROUNDUP(G17/D17,0),\"-\")","v":0},1620,0,0]
["Option 1: 8 cans vegetables or soup;",null,"6 Cans of Vegetables or Soup (10.5 to 15.5 oz)",24,6,null,{"$f":"IFERROR(F18*$E$2,\"-\")","v":0},null,{"$f":"IFERROR(ROUNDUP(G18/D18,0),\"-\")","v":0},1620,0,0]
["Option 2: 6 cans vegetables or soup,",null,"1 Package of Dehydrated Potatoes (1 lb)",12,1,null,{"$f":"IFERROR(F19*$E$2,\"-\")","v":0},null,{"$f":"IFERROR(ROUNDUP(G19/D19,0),\"-\")","v":0},2500,0,0]
["and 1 package dehydrated potatoes.",null,null,null,null,{"$f":"F19*2+F18+F17","v":0},"Out Of 8 Units Selected"]
[]
["Cheese:",null,"1 Package of Cheese (2 lb)",12,1,1,{"$f":"IFERROR(F22*$E$2,\"-\")","v":0},null,{"$f":"IFERROR(ROUNDUP(G22/D22,0),\"-\")","v":0},1650,0,0]
["One package cheese.",null,null,null,null,{"$f":"SUM(F22)","v":1},"Out Of 1 Units Selected"]
[]
["Milk: Press one of the three options only.\n",null,"2 UHT Fluid Milk 1% (32 oz)",12,2,null,{"$f":"IFERROR(F25*$E$2,\"-\")","v":0},null,{"$f":"IFERROR(ROUNDUP(G25/D25,0),\"-\")","v":0},1500,0,0]
["  Option 1: 2 UHT fluid milk 1%;",null,"1 UHT Milk (32 oz)",12,1,null,{"$f":"IFERROR(F26*$E$2,\"-\")","v":0},null,{"$f":"IFERROR(ROUNDUP(G26/D26,0),\"-\")","v":0},1500,0,0]
["Option 2: 1 UHT Milk and 1 12.8 oz",null,"1 Instant Nonfat Dry Milk (12.8 oz.)",24,1,null,{"$f":"IFERROR(F27*$E$2,\"-\")","v":0},null,{"$f":"IFERROR(ROUNDUP(G27/D27,0),\"-\")","v":0},1560,0,0]
["instant nonfat dry milk (NFDM); or",null,"1 UHT Fluid Milk 1% (32 oz.) (monthly)",12,1,null,{"$f":"IFERROR(F28*$E$2,\"-\")","v":0},null,{"$f":"IFERROR(ROUNDUP(G28/D28,0),\"-\")","v":0},1500,0,0]
["Option 3: 1 UHT milk (every month) and 1",null,"1 Instant Nonfat Dry Milk (25.6 oz) (every other month)",12,1,null,{"$f":"IFERROR(F29*$E$2/2,\"-\")","v":0},null,0,1400,0,0]
["25.6 oz NFDM (every other month).",null,null,null,null,{"$f":"SUM(F25:F29)","v":0},"Out Of 2 Units Selected"]
[]
["Meat, Poultry, and Fish:","Option 1","1 Shelf Stable Package of Beef, Beef Stew, or Chili (24 oz)",24,1,null,{"$f":"IFERROR(F32*$E$2,\"-\")","v":0},null,{"$f":"IFERROR(ROUNDUP(G32/D32,0),\"-\")","v":0},1000,0,0]
["Manually input quantities into Column F.","And one of: ","1 Unit of Salmon (14.75 oz)",24,1,null,0,null,0,1520,0,0]
["Option 1: 1 beef/beef stew/chili (24 oz) ","OR","1 Unit of Tuna (12 oz)",24,1,null,0,null,0,1800,0,0]
["and 1 poultry/fish (10 to 15 oz); or","OR","1 Unit of Chicken (10 to 15 oz)",36,1,null,0,null,0,1600,0,0]
["Option 2: 3 shelf-stable package poultry","Option 2","1 Unit of Salmon (14.75 oz)",24,"1 to 3",null,0,null,0,1520,0,0]
["and/or fish (any combination). ",null,"1 Unit of Tuna (12 oz) ",24,"1 to 3",null,0,null,0,1800,0,0]
[null,"3 TOTAL","1 Unit of Chicken (10 to 15 oz)",36,"1 to 3",null,0,null,0,1600,0,0]
[null,null,null,null,null,{"$f":"F32*2+SUM(F33:F38)","v":0},"Out of 3 Units Selected"]
[]
["Plant-Based Protein:","Option 1","Canned Beans (15.5 oz)",24,"1 to 3",null,{"$f":"IFERROR(F41*$E$2,\"-\")","v":0},null,{"$f":"IFERROR(ROUNDUP(G41/D41,0),\"-\")","v":0},1530,0,0]
["Manually input quantities into Column F. ",null,"Dry Beans or Lentils (1 lb)",24,"1 to 3",null,0,null,0,1680,0,0]
["Option 1: 3 units of any combination of ","3 TOTAL","Peanut Butter (16 to 18 oz)",12,"1 to 3",null,0,null,0,2880,0,0]
["canned beans, 1 lb dry beans or lentils,","Option 2","Dry Beans or Lentils (2 lb)",12,1,null,0,null,0,1680,0,0]
["and peanut butter;","And one of:","Canned Beans (15.5 oz)",24,1,null,0,null,0,1530,0,0]
["Option 2: 1 2 lb dry beans or lentils, and 1 ","OR","Dry Beans or Lentils (1 lb)",24,1,null,0,null,0,1680,0,0]
["unit of canned beans, peanut butter, or 1 lb dry beans or lentils. ","OR","Peanut Butter (16 to 18 oz)",12,1,null,0,null,0,2880,0,0]
[null,null,null,null,null,{"$f":"SUM(F41:F43)+(F44*2)+F45+F46+F47","v":0},"Out of 3 Units Selected"]
[]
["Cereals:","Option 1","Rolled Oats (18 oz)",12,"1 to 2",null,{"$f":"IFERROR(F50*$E$2,\"-\")","v":0},null,{"$f":"IFERROR(ROUNDUP(G50/D50,0),\"-\")","v":0},2240,0,0]
["Manually input Option 1 quantities into ",null,"Farina (18 oz)",10,"1 to 2",null,0,null,0,3400,0,0]
["column F, or press Option 2 or 3 only. ",null,"Grits (2 lb)",12,"1 to 2",null,0,null,0,1728,0,0]
["Option 1: 2 units of any combination of ",null,"Cereal - 10 Pack Size (12 to 18 oz)",10,"1 to 2",null,0,null,0,2160,0,0]
["cereal, farina, rolled oats (18 oz) and grits ",null,"Cereal - 12 Pack Size (12 to 18 oz)",12,"1 to 2",null,0,null,0,1344,0,0]
["(2 lb); ",null,"Cereal - 14 Pack Size (12 to 18 oz)",14,"1 to 2",null,0,null,0,1344,0,0]
["Option 2: 1 42 to 48 oz unit rolled oats; or","2 TOTAL","Cereal - 16 Pack Size (12 to 18 oz)",16,"1 to 2",null,0,null,0,1344,0,0]
["Option 3: 1 5 lb unit grits (every other ",null,"Rolled Oats (42 to 48 oz)",12,1,null,0,null,0,1040,0,0]
["month).",null,"Grits (5 lb) (every other month)",8,1,null,{"$f":"IFERROR(F58*$E$2/2,\"-\")","v":0},null,0,1071,0,0]
[null,null,null,null,null,1,0,null,"-",null,"-","-"]
[null,null,null,null,null,{"$f":"SUM(F50:F56)+(F57*2)+(F58*2)","v":0},"Out Of 2 Units Selected"]
[]
["Pasta and Rice:","Option 1","Pasta - 12 Pack Size (1 lb)",12,"1 to 2",null,{"$f":"IFERROR(F62*$E$2,\"-\")","v":0},null,{"$f":"IFERROR(ROUNDUP(G62/D62,0),\"-\")","v":0},2700,0,0]
["Manually input quantities into Column F.",null,"Pasta - 20 Pack Size (1 lb)",20,"1 to 2",null,0,null,0,1840,0,0]
["Option 1: 2 units of any combination of ","2 TOTAL","Rice (1 lb)",24,"1 to 2",null,0,null,0,1680,0,0]
["pasta and 1 lb rice;","Option 2","Rice (2 lb) - 24 Pack Size",24,1,null,0,null,0,875,0,0]
["Option 2: 1 2 lb unit rice. ","OR","Rice (2 lb) - 30 Pack Size",30,1,null,0,null,0,700,0,0]
[null,null,null,null,null,{"$f":"F66*2+F65*2+F62+F63+F64","v":0},"Out Of 2 Units Selected"]
[]
[]
["Last Updated: August 2019"]

{"sheet":"Order Reference Chart","index":2,"n_rows":102,"n_cols":8,"rows_kept":102,"cut":false,"hidden":false,"merged":[]}
["Direct","Order Reference Chart"]
[]
[null,"Agency: ",null,null,null,"Caseload: "]
[]
["Food Package Category","Material Number","Product","Units per food package","Units per Case","Cases per Truck","Servings per Truck","1 Truck lasts X Months"]
[]
["Fruits and Juice:","100207","Applesauce",3,24,1620,{"$f":"PRODUCT(E7*F7/D7)","v":12960},{"$f":"IFERROR(PRODUCT(G7/$H$3), \"-\")","v":"-"}]
[null,"100210","Apricot Halves",2,24,1620,{"$f":"PRODUCT(E8*F8/D8)","v":19440},{"$f":"IFERROR(PRODUCT(G8/$H$3), \"-\")","v":"-"}]
["Option 1: 1 juice and 3 cans fruit;","100211","Mixed Fruit",1,24,1620,{"$f":"PRODUCT(E9*F9/D9)","v":38880},{"$f":"IFERROR(PRODUCT(G9/$H$3), \"-\")","v":"-"}]
["Option 2: 2 juices and 2 cans fruit;","100218","Peaches"]
["Option 3: 1 package raisins, 1 juice, ","100223","Pears"]
["and 2 cans fruit; or","100233","Plums"]
["Option 4: 1 package raisins, 2","100295","Raisins",1,24,1728,{"$f":"PRODUCT(E13*F13/D13)","v":41472},{"$f":"IFERROR(PRODUCT(G13/$H$3), \"-\")","v":"-"}]
["juices, and 1 can fruit. ","100893","Apple Juice",2,8,1025,4100,"-"]
[null,"100895","Grape (Concord) Juice",1,8,1025,8200,"-"]
[null,"100897","Orange Juice"]
[null,"100899","Cranberry-Apple Juice"]
[null,"100898","Tomato Juice"]
[]
[]
[null,"100306","Green Beans",8,24,1620,{"$f":"PRODUCT(E21*F21/D21)","v":4860},"-"]
["Vegetables:","100314","Peas",6,24,1620,6480,"-"]
[null,"100328","Tomatoes Diced"]
["Option 1: 8 cans vegetables or soup;","100335","Spaghetti Sauce (meatless)"]
["Option 2: 6 cans vegetables or soup,","100316","Sweet Potatoes w/ Syrup",8,24,1530,4590,"-"]
["and 1 package dehydrated ","100331","Potatoes (white slices)",6,24,1530,6120,"-"]
["potatoes.","100323","Spinach",8,24,1615,4845,"-"]
[null,null,null,6,24,1615,6460,"-"]
[null,"100321","Vegetable Soup",8,24,2200,6600,"-"]
[null,null,null,6,24,2200,8800,"-"]
[null,"100337","Potatoes (dehydrated flakes)",1,12,2500,30000,"-"]
[]
[]
["Milk: \n","100050","UHT Milk (1%)",2,12,1500,{"$f":"PRODUCT(E34*F34/D34)","v":9000},"-"]
["  Option 1: 2 UHT fluid milk 1%;",null,null,1,12,1500,18000,"-"]
["Option 2: 1 UHT Milk and 1 (12.8 oz)","111006","Nonfat Dry Milk (Instant) (12.8 oz)",1,24,1560,37440,"-"]
["instant nonfat dry milk (NFDM); or"]
["Option 3: 1 UHT milk (every month) and"]
["1 25.6 oz NFDM (every other month)."]
[]
["Cheese:"]
["One package cheese.","100035","Cheese Blend (American Skim)",1,12,1650,19800,"-"]
[]
[]
["Meat, Poultry, and Fish:","100127","Beef (24 oz)",1,24,1000,24000,"-"]
[null,"100138","Beef Chili without Beans (24 oz)",1,24,1000,24000,"-"]
["Option 1: 1 beef/beef stew/chili (24 oz) ","100526","Beef Stew (24 oz)",3,24,1000,{"$f":"PRODUCT(E47*F47/D47)","v":8000},"-"]
["and 1 poultry/fish (10 to 15 oz); or","100194","Tuna Chunk Light",3,24,1800,14400,"-"]
["Option 2: 3 shelf-stable package poultry",110940,"Chicken Boned (Can)",2,24,1800,21600,"-"]
["and/or fish (any combination). ",null,null,1,24,1800,43200,"-"]
[null,110477,"Chicken Boned (Pouch)",3,24,1600,12800,"-"]
[null,110478,null,2,24,1600,19200,"-"]
[null,null,null,1,24,1600,38400,"-"]
[null,"110563","Salmon Pink",3,24,1520,12160,"-"]
[null,null,null,2,24,1520,18240,"-"]
[null,null,null,1,24,1520,36480,"-"]
[]
["Plant-Based Protein:","100363","Vegetarian Beans",3,24,1530,12240,"-"]
[null,"110020","Black Beans",2,24,1530,18360,"-"]
["Option 1: 3 units of any combination of ","110021","Pinto Beans",1,24,1530,36720,"-"]
["canned beans, (1 lb) dry beans or lentils,","100372","Light Red Kidney Beans"]
["and peanut butter; or","100395","Peanut Butter Smooth (16 oz)",3,12,2880,11520,"-"]
["Option 2: 1 2 lb dry beans or lentils, and 1 ",null,null,2,12,2880,17280,"-"]
["unit of canned beans, peanut butter, or ",null,null,1,12,2880,34560,"-"]
["(1 lb) dry beans or lentils. ","111063","Pinto Dry Beans (1 lb)",3,24,1680,13440,"-"]
[null,"111067","Great Northern Dry Beans (1 lb)",2,24,1680,20160,"-"]
[null,"111068","Baby Lima Dry Beans (1 lb)",1,24,1680,40320,"-"]
[null,"111102","Lentil Dry Beans (1 lb)"]
[null,"111080","Light Red Kidney Dry Beans (1 lb)"]
[null,"100380","Great Northern Dry Beans (2 lb)",1,12,1680,{"$f":"PRODUCT(E70*F70/D70)","v":20160},"-"]
[null,"100382","Pinto Dry Beans (2 lb)",1,12,1680,{"$f":"PRODUCT(E71*F71/D71)","v":20160},"-"]
[null,"100385","Light Red Kidney Dry Beans (2 lb)",1,12,1680,{"$f":"PRODUCT(E72*F72/D72)","v":20160},{"$f":"IFERROR(PRODUCT(G72/$H$3), \"-\")","v":"-"}]
[]
["Cereals:","100449","Corn Flakes Cereal",2,12,1080,{"$f":"PRODUCT(E74*F74/D74)","v":6480},{"$f":"IFERROR(PRODUCT(G74/$H$3), \"-\")","v":"-"}]
[" ","100457","Rice Crisps Cereal",1,12,1080,{"$f":"PRODUCT(E75*F75/D75)","v":12960},{"$f":"IFERROR(PRODUCT(G75/$H$3), \"-\")","v":"-"}]
["Option 1: 2 units of any combination of ","110265","Corn Rice Biscuits Cereal"]
["cereal, farina, rolled oats (18 oz) and","100929","Oat Circles Cereal",2,12,1344,{"$f":"PRODUCT(E77*F77/D77)","v":8064},{"$f":"IFERROR(PRODUCT(G77/$H$3), \"-\")","v":"-"}]
["grits (2 lb); ","100933","Wheat Bran Flakes Cereal",1,12,1344,{"$f":"PRODUCT(E78*F78/D78)","v":16128},{"$f":"IFERROR(PRODUCT(G78/$H$3), \"-\")","v":"-"}]
["Option 2: 1 42 to 48 oz unit rolled oats; or","110740","Corn Squares Cereal"]
["Option 3: 1 5 lb unit grits (every other ","110374","Shredded Wheat Cereal",2,16,2160,{"$f":"PRODUCT(E80*F80/D80)","v":17280},{"$f":"IFERROR(PRODUCT(G80/$H$3), \"-\")","v":"-"}]
["month).",null,null,1,16,2160,34560,"-"]
[null,"110880","Wheat Farina",2,10,3400,17000,"-"]
[null,null,null,1,10,3400,34000,"-"]
[null,"111074","Rolled Oats (18 oz)",2,12,2240,13440,"-"]
[null,null,null,1,12,2240,26880,"-"]
[null,"111082","White Corn Grits (2 lb)",2,12,1728,10368,"-"]
[null,null,null,1,12,1728,20736,"-"]
[null,"100465","Rolled Oats (42/48 oz)",1,12,1040,12480,"-"]
[null,"100470","White Corn Grits (5 lb)",0.5,8,1071,17136,"-"]
[]
["Pasta and Rice:","110450","Spaghetti Pasta",2,20,1840,18400,"-"]
[null,null,null,1,20,1840,36800,"-"]
["Option 1: 2 units of any combination of ","110511","Macaroni Elbow Pasta",2,20,1776,17760,"-"]
["pasta and 1 lb rice; or",null,null,1,20,1776,35520,"-"]
["Option 2: 1 2 lb unit rice. ","110777","Whole Grain Rotini Pasta",2,12,2700,16200,"-"]
[null,null,null,1,12,2700,32400,"-"]
[null,"111075","Long Grain Rice (1 lb)",2,24,1680,20160,"-"]
[null,null,null,1,24,1680,40320,"-"]
[null,"111083","Brown Rice (1 lb)",2,30,1400,21000,"-"]
[null,null,null,1,30,1400,42000,"-"]
[null,"100491","Long Grain Rice (2 lb) (24 count)",1,24,875,{"$f":"PRODUCT(E101*F101/D101)","v":21000},"-"]
[null,"100492","Long Grain Rice (2 lb) (30 count)",1,30,700,{"$f":"PRODUCT(E102*F102/D102)","v":21000},"-"]

{"sheet":"Sheet2","index":3,"n_rows":52,"n_cols":10,"rows_kept":52,"cut":false,"hidden":true,"merged":[]}
[]
[]
[]
[]
["FOOD PACKAGE CATEGORY"]
[null,null,null,"Product Pack Size","Category Options","Units Per Client","Total Units Per Month",null,"How Many Cases Do I Need Per Month? ","Direct Orders--How Many Trucks Do I Need Per Month?"]
["Fruits and Juice","Option 1","1 Bottle of Juice",8,null,1,{"$f":"F7*$F$2","v":0},null,{"$f":"G7*D7","v":0}]
[null,null,"3 Cans of Fruit",24,null,3,{"$f":"F8*$F$2","v":0},null,{"$f":"G8*D8","v":0}]
[null,"Option 2","2 Bottles of Juice",8,null,2,0,null,0]
[null,null,"2 Cans of Fruit",24,null,2,0,null,0]
[null,"Option 3","1 Package of Raisins",24,null,1,0,null,0]
[null,null,"1 Bottle of Juice",8,null,1,0,null,0]
[null,null,"2 Cans of Fruit",24,null,2,0,null,0]
[null,"Option 4","1 Package of Raisins",24,null,1,0,null,0]
[null,null,"2 Bottles of Juice",8,null,2,0,null,0]
[null,null,"1 Can of Fruit",24,null,1,0,null,0]
[]
["Vegetables","Option 1","8 Cans of Vegetables/Soup",24,null,8,0,null,0]
[null,"Option 2","6 Cans of Vegetables/Soup",24,null,6,0,null,0]
[null,null,"1 Package of Potato Flakes",12,null,1,0,null,0]
[]
["Cheese",null,"1 Package of Cheese",12,null,1,0,null,0]
[]
["Milk","Option 1","2 UHT Milk",12,null,2,0,null,0]
[null,"Option 2","1 UHT Milk",12,null,1,0,null,0]
[null,null,"1 12.8 oz Nonfat Dry Milk",24,null,1,0,null,0]
[]
["Meat, Poultry, and Fish","Option 1","1 Can Beef, Beef Stew, or Chili",24,null,1,0,null,0]
[null,null,"1 Can Salmon",24,null,1,0,null,0]
[null,"OR","1 Can Tuna",24,null,1,0,null,0]
[null,"OR","1 Can Chicken",24,null,1,0,null,0]
[null,"Option 2","Can Salmon",24,null,1,0,null,0]
[null,null,"Can Tuna",24,null,1,0,null,0]
[null,"3 TOTAL","Can Chicken",24,null,1,0,null,0]
[]
["Plant-Based Protein",null,"Canned Beans",24,null,1,0,null,0]
[null,null,"Dry Beans/Lentils",24,null,1,0,null,0]
[null,"3 TOTAL","Peanut Butter",12,null,1,0,null,0]
[]
["Cereals",null,"Rolled Oats",12,null,1,0,null,0]
[null,null,"Farina",24,null,1,0,null,0]
[null,null,"Grits",12,null,1,0,null,0]
[null,null,"Cereal - 8 Pack Size",8,null,1,0,null,0]
[null,null,"Cereal - 10 Pack Size",10,null,1,0,null,0]
[null,null,"Cereal - 12 Pack Size",12,null,1,0,null,0]
[null,null,"Cereal - 14 Pack Size",14,null,1,0,null,0]
[null,"2 TOTAL","Cereal - 16 Pack Size",16,null,1,0,null,0]
[]
["Pasta and Rice",null,"Pasta - 12 Pack Size",12,null,1,0,null,0]
[null,null,"Pasta - 20 Pack Size",20,null,1,0,null,0]
[null,null,"Pasta - 24 Pack Size",24,null,1,0,null,0]
[null,"2 TOTAL","Rice",24,null,1,0,null,0]

{"sheet":"Sheet1","index":4,"n_rows":0,"n_cols":0,"rows_kept":0,"cut":false,"hidden":true,"merged":[]}